[Event "Titled Tuesday Blitz May 4 2021"]
[White "Nosacheva, Mariya"]
[Black "Bures, Vit"]
[WhiteFideId "34111422"]
[BlackFideId "309052"]
[WhiteElo "2035"]
[BlackElo "2131"]
[Result "1-0"]
[Round "10"]
[TimeControl "180+1"]
[Date "2021.05.04"]
[WhiteClock "0:00:42"]
[BlackClock "0:00:01"]

1. e4 {[%clk 0:03:00]}  e5 {[%clk 0:02:59]} 2. Nf3 {[%clk 0:03:00]}  Nc6 {[%clk 0:02:58]} 3. Bb5 {[%clk 0:03:00]}  a6 {[%clk 0:02:58]} 4. Ba4 {[%clk 0:03:00]}  Nf6 {[%clk 0:02:58]} 5. O-O {[%clk 0:02:52]}  Be7 {[%clk 0:02:57]} 6. Re1 {[%clk 0:02:50]}  b5 {[%clk 0:02:56]} 7. Bb3 {[%clk 0:02:50]}  O-O {[%clk 0:02:57]} 8. a4 {[%clk 0:02:49]}  b4 {[%clk 0:02:56]} 9. d3 {[%clk 0:02:49]}  d6 {[%clk 0:02:53]} 10. a5 {[%clk 0:02:46]}  Be6 {[%clk 0:02:53]} 11. c3 {[%clk 0:02:46]}  Rb8 {[%clk 0:02:51]} 12. Bxe6 {[%clk 0:02:29]}  fxe6 {[%clk 0:02:50]} 13. Ng5 {[%clk 0:02:21]}  Qd7 {[%clk 0:02:46]} 14. Qa4 {[%clk 0:02:22]}  Nd8 {[%clk 0:02:19]} 15. Nd2 {[%clk 0:02:13]}  Qxa4 {[%clk 0:02:14]} 16. Rxa4 {[%clk 0:02:11]}  bxc3 {[%clk 0:02:14]} 17. bxc3 {[%clk 0:02:10]}  h6 {[%clk 0:02:01]} 18. Ngf3 {[%clk 0:02:05]}  c5 {[%clk 0:01:55]} 19. Nc4 {[%clk 0:02:02]}  Nc6 {[%clk 0:01:55]} 20. Be3 {[%clk 0:01:51]}  Rb3 {[%clk 0:01:51]} 21. Rc1 {[%clk 0:01:42]}  Rfb8 {[%clk 0:01:50]} 22. h3 {[%clk 0:01:42]}  Rb1 {[%clk 0:01:36]} 23. Ra1 {[%clk 0:01:42]}  Rxc1+ {[%clk 0:01:33]} 24. Bxc1 {[%clk 0:01:34]}  Rb3 {[%clk 0:01:17]} 25. Bd2 {[%clk 0:01:33]}  Kf7 {[%clk 0:01:11]} 26. Kf1 {[%clk 0:01:34]}  Ne8 {[%clk 0:00:57]} 27. Ke2 {[%clk 0:01:31]}  Bd8 {[%clk 0:00:56]} 28. Ne1 {[%clk 0:01:10]}  d5 {[%clk 0:00:50]} 29. exd5 {[%clk 0:01:08]}  exd5 {[%clk 0:00:49]} 30. Ne3 {[%clk 0:01:08]}  Ke6 {[%clk 0:00:49]} 31. c4 {[%clk 0:01:05]}  d4 {[%clk 0:00:29]} 32. Nd5 {[%clk 0:01:05]}  Nf6 {[%clk 0:00:30]} 33. Nxf6 {[%clk 0:01:02]}  Kxf6 {[%clk 0:00:26]} 34. Nf3 {[%clk 0:01:02]}  Rb2 {[%clk 0:00:22]} 35. g4 {[%clk 0:00:59]}  Bxa5 {[%clk 0:00:19]} 36. h4 {[%clk 0:00:56]}  Bxd2 {[%clk 0:00:19]} 37. Nxd2 {[%clk 0:00:56]}  Nb4 {[%clk 0:00:19]} 38. Ra5 {[%clk 0:00:53]}  Ra2 {[%clk 0:00:06]} 39. Rxc5 {[%clk 0:00:54]}  a5 {[%clk 0:00:06]} 40. Rb5 {[%clk 0:00:52]}  Rb2 {[%clk 0:00:06]} 41. Rxa5 {[%clk 0:00:52]}  Nc2 {[%clk 0:00:05]} 42. Ra6+ {[%clk 0:00:51]}  Kf7 {[%clk 0:00:05]} 43. Kd1 {[%clk 0:00:51]}  Nb4 {[%clk 0:00:04]} 44. Ra7+ {[%clk 0:00:49]}  Ke6 {[%clk 0:00:03]} 45. Ke2 {[%clk 0:00:47]}  Rb3 {[%clk 0:00:02]} 46. Rxg7 {[%clk 0:00:47]}  Rxd3 {[%clk 0:00:01]} 47. Rg6+ {[%clk 0:00:47]}  Ke7 {[%clk 0:00:01]} 48. Rxh6 {[%clk 0:00:47]}  Rh3 {[%clk 0:00:01]} 49. g5 {[%clk 0:00:46]}  d3+ {[%clk 0:00:01]} 50. Ke1 {[%clk 0:00:43]}  Nc2+ {[%clk 0:00:01]} 51. Kf1 {[%clk 0:00:42]}  Nd4 {[%clk 0:00:01]} 52. Kg2 {[%clk 0:00:42]} 1-0


[Site "https://www.chess.com"]

[Event "Titled Tuesday Blitz May 4 2021"]
[White "Novikova, Galina"]
[Black "Pajeken, Jakob Leon"]
[WhiteFideId "4157095"]
[BlackFideId "12942839"]
[WhiteElo "1966"]
[BlackElo "2024"]
[Result "0-1"]
[Round "10"]
[TimeControl "180+1"]
[Date "2021.05.04"]
[WhiteClock "0:00:07"]
[BlackClock "0:02:24"]

1. e4 {[%clk 0:02:59]}  e5 {[%clk 0:02:59]} 2. Nf3 {[%clk 0:02:59]}  Nc6 {[%clk 0:02:59]} 3. d4 {[%clk 0:02:59]}  exd4 {[%clk 0:02:58]} 4. Nxd4 {[%clk 0:03:00]}  Nf6 {[%clk 0:02:57]} 5. Nc3 {[%clk 0:03:00]}  Nxe4 {[%clk 0:02:56]} 6. Nxe4 {[%clk 0:02:55]}  Qe7 {[%clk 0:02:56]} 7. Bd3 {[%clk 0:02:33]}  Nxd4 {[%clk 0:02:54]} 8. O-O {[%clk 0:02:33]}  Ne6 {[%clk 0:02:55]} 9. f4 {[%clk 0:02:29]}  f5 {[%clk 0:02:49]} 10. Ng5 {[%clk 0:02:24]}  g6 {[%clk 0:02:45]} 11. Bxf5 {[%clk 0:02:09]}  Qc5+ {[%clk 0:02:44]} 12. Kh1 {[%clk 0:02:06]}  Qxf5 {[%clk 0:02:43]} 13. Nxe6 {[%clk 0:00:39]}  dxe6 {[%clk 0:02:42]} 14. Qd4 {[%clk 0:00:36]}  Rg8 {[%clk 0:02:37]} 15. Be3 {[%clk 0:00:34]}  Bd6 {[%clk 0:02:36]} 16. Rad1 {[%clk 0:00:32]}  Bd7 {[%clk 0:02:36]} 17. c4 {[%clk 0:00:31]}  Bc6 {[%clk 0:02:35]} 18. c5 {[%clk 0:00:29]}  Be7 {[%clk 0:02:32]} 19. b4 {[%clk 0:00:25]}  Rd8 {[%clk 0:02:30]} 20. Qb2 {[%clk 0:00:25]}  Rxd1 {[%clk 0:02:28]} 21. Rxd1 {[%clk 0:00:26]}  Qe4 {[%clk 0:02:29]} 22. Bg1 {[%clk 0:00:14]}  Kf7 {[%clk 0:02:27]} 23. b5 {[%clk 0:00:13]}  Bd5 {[%clk 0:02:26]} 24. Qc3 {[%clk 0:00:07]}  Qxg2# {[%clk 0:02:24]} 0-1


[Site "https://www.chess.com"]

[Event "Titled Tuesday Blitz May 4 2021"]
[White "Ognean, Mihnea-Ionut"]
[Black "Oliveira, Silvio Eduardo"]
[WhiteFideId "1232347"]
[BlackFideId "2111560"]
[WhiteElo "2012"]
[BlackElo "2302"]
[Result "1-0"]
[Round "10"]
[TimeControl "180+1"]
[Date "2021.05.04"]
[WhiteClock "0:00:11"]
[BlackClock "0:00:03"]

1. e4 {[%clk 0:03:00]}  e5 {[%clk 0:02:58]} 2. Nf3 {[%clk 0:03:00]}  Nc6 {[%clk 0:02:56]} 3. Nc3 {[%clk 0:02:59]}  Nf6 {[%clk 0:02:55]} 4. d4 {[%clk 0:02:59]}  exd4 {[%clk 0:02:53]} 5. Nxd4 {[%clk 0:03:00]}  Bb4 {[%clk 0:02:54]} 6. Nxc6 {[%clk 0:02:59]}  bxc6 {[%clk 0:02:53]} 7. Bd3 {[%clk 0:02:59]}  d5 {[%clk 0:02:54]} 8. exd5 {[%clk 0:02:59]}  O-O {[%clk 0:02:54]} 9. O-O {[%clk 0:02:58]}  Bg4 {[%clk 0:02:54]} 10. f3 {[%clk 0:02:54]}  Bh5 {[%clk 0:02:54]} 11. Bg5 {[%clk 0:02:43]}  Qd6 {[%clk 0:02:54]} 12. Kh1 {[%clk 0:02:32]}  Nxd5 {[%clk 0:02:38]} 13. Ne4 {[%clk 0:02:26]}  Qd7 {[%clk 0:02:17]} 14. c3 {[%clk 0:02:23]}  Be7 {[%clk 0:02:12]} 15. Qd2 {[%clk 0:02:23]}  Bg6 {[%clk 0:02:10]} 16. Rad1 {[%clk 0:02:20]}  f5 {[%clk 0:02:02]} 17. Nf2 {[%clk 0:01:43]}  Rae8 {[%clk 0:01:49]} 18. Bc4 {[%clk 0:01:41]}  Bf7 {[%clk 0:01:38]} 19. Bxd5 {[%clk 0:01:36]}  cxd5 {[%clk 0:01:35]} 20. Bxe7 {[%clk 0:01:34]}  Rxe7 {[%clk 0:01:34]} 21. Nd3 {[%clk 0:01:35]}  Rfe8 {[%clk 0:01:33]} 22. Rfe1 {[%clk 0:01:35]}  d4 {[%clk 0:01:23]} 23. Rxe7 {[%clk 0:01:30]}  Rxe7 {[%clk 0:01:17]} 24. Nc5 {[%clk 0:01:20]}  Qb5 {[%clk 0:00:58]} 25. cxd4 {[%clk 0:01:00]}  Re2 {[%clk 0:00:56]} 26. Qg5 {[%clk 0:01:00]}  Qxb2 {[%clk 0:00:51]} 27. h4 {[%clk 0:00:33]}  h6 {[%clk 0:00:51]} 28. Qd8+ {[%clk 0:00:33]}  Kh7 {[%clk 0:00:50]} 29. Nd7 {[%clk 0:00:31]}  Re8 {[%clk 0:00:43]} 30. Qxc7 {[%clk 0:00:28]}  Qxa2 {[%clk 0:00:37]} 31. d5 {[%clk 0:00:24]}  Kg8 {[%clk 0:00:22]} 32. Qg3 {[%clk 0:00:17]}  Kh8 {[%clk 0:00:18]} 33. d6 {[%clk 0:00:17]}  Qe2 {[%clk 0:00:16]} 34. Rc1 {[%clk 0:00:15]}  Qe3 {[%clk 0:00:12]} 35. Rc7 {[%clk 0:00:14]}  Qe6 {[%clk 0:00:02]} 36. Nc5 {[%clk 0:00:11]}  Rd8 {[%clk 0:00:03]} 37. Nxe6 {[%clk 0:00:11]} 1-0


[Site "https://www.chess.com"]

[Event "Titled Tuesday Blitz May 4 2021"]
[White "Ozkan, Ervin"]
[Black "Banawa, Joel"]
[WhiteFideId "6306004"]
[BlackFideId "2024055"]
[WhiteElo "2226"]
[BlackElo "2674"]
[Result "1-0"]
[Round "10"]
[TimeControl "180+1"]
[Date "2021.05.04"]
[WhiteClock "0:00:09"]
[BlackClock "0:00:02"]

1. d4 {[%clk 0:03:00]}  Nf6 {[%clk 0:02:59]} 2. Nf3 {[%clk 0:03:00]}  g6 {[%clk 0:03:00]} 3. Bf4 {[%clk 0:03:01]}  Bg7 {[%clk 0:03:01]} 4. e3 {[%clk 0:03:02]}  d6 {[%clk 0:03:01]} 5. h3 {[%clk 0:03:02]}  Nbd7 {[%clk 0:03:02]} 6. Be2 {[%clk 0:03:03]}  c5 {[%clk 0:03:02]} 7. c3 {[%clk 0:03:03]}  O-O {[%clk 0:03:01]} 8. O-O {[%clk 0:03:03]}  b6 {[%clk 0:03:01]} 9. a4 {[%clk 0:02:54]}  a6 {[%clk 0:02:57]} 10. Na3 {[%clk 0:02:37]}  Bb7 {[%clk 0:02:57]} 11. Nc4 {[%clk 0:02:33]}  b5 {[%clk 0:02:57]} 12. Na3 {[%clk 0:02:29]}  b4 {[%clk 0:02:57]} 13. cxb4 {[%clk 0:02:24]}  cxb4 {[%clk 0:02:58]} 14. Nc4 {[%clk 0:02:23]}  a5 {[%clk 0:02:53]} 15. Bh2 {[%clk 0:02:19]}  Ne4 {[%clk 0:02:50]} 16. Rc1 {[%clk 0:02:17]}  Ndf6 {[%clk 0:02:49]} 17. Nfd2 {[%clk 0:02:14]}  Ng5 {[%clk 0:02:39]} 18. Nf3 {[%clk 0:02:01]}  Ne6 {[%clk 0:02:38]} 19. Nfd2 {[%clk 0:01:53]}  Ng5 {[%clk 0:02:38]} 20. Nf3 {[%clk 0:01:52]}  Ne6 {[%clk 0:02:30]} 21. Nfd2 {[%clk 0:01:52]}  Rc8 {[%clk 0:02:24]} 22. Bf3 {[%clk 0:01:46]}  Ba6 {[%clk 0:02:23]} 23. Re1 {[%clk 0:01:46]}  Ng5 {[%clk 0:02:20]} 24. Be2 {[%clk 0:01:46]}  Nge4 {[%clk 0:01:29]} 25. Nb3 {[%clk 0:01:43]}  Ra8 {[%clk 0:01:11]} 26. h4 {[%clk 0:01:35]}  Qe8 {[%clk 0:01:10]} 27. f3 {[%clk 0:01:24]}  d5 {[%clk 0:01:06]} 28. Ncxa5 {[%clk 0:00:52]}  Nd6 {[%clk 0:01:00]} 29. Nc6 {[%clk 0:00:35]}  Bxe2 {[%clk 0:00:49]} 30. Rxe2 {[%clk 0:00:36]}  Nc4 {[%clk 0:00:49]} 31. Ne5 {[%clk 0:00:29]}  Nxe5 {[%clk 0:00:20]} 32. dxe5 {[%clk 0:00:30]}  Nd7 {[%clk 0:00:19]} 33. Qxd5 {[%clk 0:00:24]}  Nb6 {[%clk 0:00:19]} 34. Qb5 {[%clk 0:00:22]}  Nxa4 {[%clk 0:00:18]} 35. Qxb4 {[%clk 0:00:21]}  Rb8 {[%clk 0:00:17]} 36. Qa3 {[%clk 0:00:20]}  Qb5 {[%clk 0:00:17]} 37. Nd4 {[%clk 0:00:17]}  Qb4 {[%clk 0:00:15]} 38. Qxb4 {[%clk 0:00:16]}  Rxb4 {[%clk 0:00:16]} 39. Nc6 {[%clk 0:00:16]}  Rb7 {[%clk 0:00:16]} 40. b4 {[%clk 0:00:14]}  Nb6 {[%clk 0:00:16]} 41. Rd1 {[%clk 0:00:12]}  Rc8 {[%clk 0:00:15]} 42. Rc2 {[%clk 0:00:10]}  Kf8 {[%clk 0:00:14]} 43. Rdc1 {[%clk 0:00:09]}  Rbc7 {[%clk 0:00:14]} 44. b5 {[%clk 0:00:09]}  Nd7 {[%clk 0:00:12]} 45. e6 {[%clk 0:00:08]}  fxe6 {[%clk 0:00:09]} 46. Bxc7 {[%clk 0:00:09]}  Rxc7 {[%clk 0:00:10]} 47. Nd4 {[%clk 0:00:08]}  Rxc2 {[%clk 0:00:08]} 48. Rxc2 {[%clk 0:00:09]}  Kf7 {[%clk 0:00:07]} 49. Rc7 {[%clk 0:00:08]}  Nb6 {[%clk 0:00:08]} 50. Nc6 {[%clk 0:00:08]}  Nd5 {[%clk 0:00:07]} 51. Rb7 {[%clk 0:00:07]}  e5 {[%clk 0:00:07]} 52. e4 {[%clk 0:00:05]}  Nf4 {[%clk 0:00:06]} 53. Rxe7+ {[%clk 0:00:05]}  Kf6 {[%clk 0:00:06]} 54. b6 {[%clk 0:00:06]}  Bf8 {[%clk 0:00:06]} 55. b7 {[%clk 0:00:06]}  Bxe7 {[%clk 0:00:05]} 56. Nxe7 {[%clk 0:00:07]}  Ne2+ {[%clk 0:00:04]} 57. Kf2 {[%clk 0:00:07]}  Nf4 {[%clk 0:00:03]} 58. Nd5+ {[%clk 0:00:08]}  Nxd5 {[%clk 0:00:04]} 59. exd5 {[%clk 0:00:08]}  e4 {[%clk 0:00:03]} 60. b8=Q {[%clk 0:00:09]}  e3+ {[%clk 0:00:03]} 61. Kxe3 {[%clk 0:00:09]}  g5 {[%clk 0:00:02]} 62. Qd6+ {[%clk 0:00:09]}  Kf5 {[%clk 0:00:02]} 63. Qe6# {[%clk 0:00:09]} 1-0


[Site "https://www.chess.com"]

[Event "Titled Tuesday Blitz May 4 2021"]
[White "Pantzar, Milton"]
[Black "Mickiewicz, Piotr"]
[WhiteFideId "1721003"]
[BlackFideId "1114891"]
[WhiteElo "2323"]
[BlackElo "2263"]
[Result "1-0"]
[Round "10"]
[TimeControl "180+1"]
[Date "2021.05.04"]
[WhiteClock "0:00:05"]
[BlackClock "0:00:01"]

1. c4 {[%clk 0:03:00]}  g6 {[%clk 0:02:50]} 2. Nc3 {[%clk 0:03:00]}  Bg7 {[%clk 0:02:49]} 3. g3 {[%clk 0:03:00]}  Nf6 {[%clk 0:02:47]} 4. Bg2 {[%clk 0:03:01]}  O-O {[%clk 0:02:47]} 5. e3 {[%clk 0:03:01]}  d6 {[%clk 0:02:47]} 6. Nge2 {[%clk 0:03:02]}  e5 {[%clk 0:02:46]} 7. O-O {[%clk 0:03:01]}  Nc6 {[%clk 0:02:43]} 8. d3 {[%clk 0:03:01]}  Bd7 {[%clk 0:02:42]} 9. b3 {[%clk 0:02:59]}  a6 {[%clk 0:02:42]} 10. Bb2 {[%clk 0:02:58]}  Rb8 {[%clk 0:02:42]} 11. Qd2 {[%clk 0:02:53]}  b5 {[%clk 0:02:41]} 12. f4 {[%clk 0:02:41]}  exf4 {[%clk 0:02:37]} 13. exf4 {[%clk 0:02:29]}  Re8 {[%clk 0:02:32]} 14. Rae1 {[%clk 0:02:26]}  Ng4 {[%clk 0:02:20]} 15. Nd5 {[%clk 0:02:25]}  Nf6 {[%clk 0:01:35]} 16. Nec3 {[%clk 0:02:14]}  b4 {[%clk 0:01:26]} 17. Ne4 {[%clk 0:02:07]}  Nxd5 {[%clk 0:01:19]} 18. Bxg7 {[%clk 0:01:59]}  Kxg7 {[%clk 0:01:15]} 19. cxd5 {[%clk 0:01:59]}  Na7 {[%clk 0:01:10]} 20. Qb2+ {[%clk 0:01:56]}  f6 {[%clk 0:01:09]} 21. Ng5 {[%clk 0:01:30]}  Nb5 {[%clk 0:01:08]} 22. Ne6+ {[%clk 0:01:25]}  Bxe6 {[%clk 0:01:08]} 23. dxe6 {[%clk 0:01:25]}  Nc3 {[%clk 0:01:08]} 24. a4 {[%clk 0:01:20]}  d5 {[%clk 0:01:07]} 25. d4 {[%clk 0:01:10]}  Qd6 {[%clk 0:01:05]} 26. f5 {[%clk 0:01:10]}  gxf5 {[%clk 0:01:04]} 27. Qf2 {[%clk 0:01:05]}  Rxe6 {[%clk 0:01:03]} 28. Qxf5 {[%clk 0:01:04]}  Rbe8 {[%clk 0:00:59]} 29. Qg4+ {[%clk 0:00:50]}  Kh8 {[%clk 0:00:58]} 30. Rxe6 {[%clk 0:00:44]}  Qxe6 {[%clk 0:00:58]} 31. Qh5 {[%clk 0:00:39]}  c6 {[%clk 0:00:46]} 32. a5 {[%clk 0:00:38]}  Ne2+ {[%clk 0:00:44]} 33. Kh1 {[%clk 0:00:37]}  Nxd4 {[%clk 0:00:45]} 34. Bh3 {[%clk 0:00:20]}  Qe2 {[%clk 0:00:35]} 35. Qf7 {[%clk 0:00:14]}  Qe7 {[%clk 0:00:33]} 36. Qh5 {[%clk 0:00:12]}  Qe4+ {[%clk 0:00:32]} 37. Bg2 {[%clk 0:00:12]}  Qg6 {[%clk 0:00:25]} 38. Qd1 {[%clk 0:00:12]}  Ne2 {[%clk 0:00:22]} 39. Bf3 {[%clk 0:00:08]}  Nc3 {[%clk 0:00:21]} 40. Qd2 {[%clk 0:00:05]}  Qg5 {[%clk 0:00:20]} 41. Qd3 {[%clk 0:00:05]}  Qe5 {[%clk 0:00:20]} 42. Qxa6 {[%clk 0:00:05]}  Kg7 {[%clk 0:00:17]} 43. Qxc6 {[%clk 0:00:04]}  d4 {[%clk 0:00:16]} 44. a6 {[%clk 0:00:04]}  Re6 {[%clk 0:00:16]} 45. Qd7+ {[%clk 0:00:04]}  Re7 {[%clk 0:00:16]} 46. Qg4+ {[%clk 0:00:04]}  Kh8 {[%clk 0:00:15]} 47. Qc8+ {[%clk 0:00:04]}  Re8 {[%clk 0:00:15]} 48. Qb7 {[%clk 0:00:04]}  d3 {[%clk 0:00:15]} 49. a7 {[%clk 0:00:04]}  d2 {[%clk 0:00:15]} 50. a8=Q {[%clk 0:00:04]}  Qe1 {[%clk 0:00:13]} 51. Qxe8+ {[%clk 0:00:02]}  Qxe8 {[%clk 0:00:13]} 52. Kg2 {[%clk 0:00:03]}  Qe3 {[%clk 0:00:12]} 53. Qc8+ {[%clk 0:00:03]}  Kg7 {[%clk 0:00:11]} 54. Qg4+ {[%clk 0:00:04]}  Kf7 {[%clk 0:00:10]} 55. Qd7+ {[%clk 0:00:04]}  Kg6 {[%clk 0:00:10]} 56. h4 {[%clk 0:00:04]}  h5 {[%clk 0:00:03]} 57. Qd8 {[%clk 0:00:04]}  Kg7 {[%clk 0:00:02]} 58. Qd7+ {[%clk 0:00:04]}  Kg6 {[%clk 0:00:03]} 59. Qd6 {[%clk 0:00:04]}  Kg7 {[%clk 0:00:03]} 60. Qf4 {[%clk 0:00:04]}  Qd3 {[%clk 0:00:02]} 61. Qc7+ {[%clk 0:00:04]}  Kg6 {[%clk 0:00:02]} 62. Qc8 {[%clk 0:00:05]}  Kg7 {[%clk 0:00:02]} 63. Qb7+ {[%clk 0:00:05]}  Kg6 {[%clk 0:00:02]} 64. Qa8 {[%clk 0:00:04]}  Kg7 {[%clk 0:00:03]} 65. Qb7+ {[%clk 0:00:05]}  Kg6 {[%clk 0:00:03]} 66. Qe7 {[%clk 0:00:05]}  Qd4 {[%clk 0:00:02]} 67. Qf8 {[%clk 0:00:05]}  d1=Q {[%clk 0:00:01]} 68. Qg8+ {[%clk 0:00:05]} 1-0


[Site "https://www.chess.com"]

[Event "Titled Tuesday Blitz May 4 2021"]
[White "Papasimakopoulos, Alexandros"]
[Black "Zemach, Roee"]
[WhiteFideId "4244125"]
[BlackFideId "2818531"]
[WhiteElo "2352"]
[BlackElo "2131"]
[Result "1-0"]
[Round "10"]
[TimeControl "180+1"]
[Date "2021.05.04"]
[WhiteClock "0:00:31"]
[BlackClock "0:00:18"]

1. d4 {[%clk 0:03:00]}  Nf6 {[%clk 0:03:00]} 2. c4 {[%clk 0:02:59]}  e6 {[%clk 0:03:00]} 3. Nc3 {[%clk 0:02:58]}  Bb4 {[%clk 0:03:00]} 4. Qc2 {[%clk 0:02:58]}  O-O {[%clk 0:02:59]} 5. a3 {[%clk 0:02:57]}  Bxc3+ {[%clk 0:02:59]} 6. Qxc3 {[%clk 0:02:58]}  d5 {[%clk 0:03:00]} 7. Bg5 {[%clk 0:02:57]}  dxc4 {[%clk 0:02:59]} 8. Qxc4 {[%clk 0:02:56]}  b6 {[%clk 0:03:00]} 9. Nf3 {[%clk 0:02:56]}  Ba6 {[%clk 0:02:58]} 10. Qa4 {[%clk 0:02:56]}  Qd7 {[%clk 0:02:59]} 11. Qc2 {[%clk 0:02:56]}  Rc8 {[%clk 0:02:27]} 12. Bxf6 {[%clk 0:02:55]}  gxf6 {[%clk 0:02:27]} 13. Qe4 {[%clk 0:02:50]}  Nc6 {[%clk 0:02:20]} 14. e3 {[%clk 0:02:48]}  Bxf1 {[%clk 0:02:19]} 15. Kxf1 {[%clk 0:02:43]}  Ne7 {[%clk 0:02:19]} 16. g4 {[%clk 0:02:43]}  c5 {[%clk 0:02:18]} 17. Kg2 {[%clk 0:02:40]}  cxd4 {[%clk 0:02:16]} 18. Nxd4 {[%clk 0:02:40]}  Qd5 {[%clk 0:02:15]} 19. Qxd5 {[%clk 0:02:38]}  Nxd5 {[%clk 0:02:16]} 20. Rac1 {[%clk 0:02:38]}  Kf8 {[%clk 0:02:14]} 21. Kf3 {[%clk 0:02:19]}  Ke7 {[%clk 0:02:09]} 22. e4 {[%clk 0:02:17]}  Nc7 {[%clk 0:02:01]} 23. Rc3 {[%clk 0:02:10]}  Ne8 {[%clk 0:01:53]} 24. Nc6+ {[%clk 0:02:05]}  Kf8 {[%clk 0:01:49]} 25. Rhc1 {[%clk 0:02:05]}  Rc7 {[%clk 0:01:47]} 26. b4 {[%clk 0:02:02]}  Nd6 {[%clk 0:01:39]} 27. Nd4 {[%clk 0:01:58]}  Rxc3+ {[%clk 0:01:35]} 28. Rxc3 {[%clk 0:01:59]}  Rc8 {[%clk 0:01:36]} 29. Rxc8+ {[%clk 0:01:58]}  Nxc8 {[%clk 0:01:37]} 30. b5 {[%clk 0:01:54]}  Ke7 {[%clk 0:01:36]} 31. Ke3 {[%clk 0:01:22]}  Kd6 {[%clk 0:01:34]} 32. Nb3 {[%clk 0:01:22]}  e5 {[%clk 0:01:14]} 33. f4 {[%clk 0:01:14]}  Ke6 {[%clk 0:01:07]} 34. f5+ {[%clk 0:01:11]}  Ke7 {[%clk 0:01:07]} 35. a4 {[%clk 0:01:06]}  Nd6 {[%clk 0:01:06]} 36. Kd3 {[%clk 0:01:06]}  Kd7 {[%clk 0:01:02]} 37. Nc1 {[%clk 0:01:05]}  Nb7 {[%clk 0:01:02]} 38. Nb3 {[%clk 0:01:00]}  Kd6 {[%clk 0:01:02]} 39. Kc4 {[%clk 0:00:59]}  Nd8 {[%clk 0:00:22]} 40. a5 {[%clk 0:00:49]}  Nb7 {[%clk 0:00:20]} 41. a6 {[%clk 0:00:42]}  Nd8 {[%clk 0:00:16]} 42. Nc1 {[%clk 0:00:37]}  Kd7 {[%clk 0:00:16]} 43. Nd3 {[%clk 0:00:36]}  Kd6 {[%clk 0:00:16]} 44. Nb4 {[%clk 0:00:36]}  h6 {[%clk 0:00:08]} 45. Nd5 {[%clk 0:00:34]}  Kd7 {[%clk 0:00:06]} 46. Nxf6+ {[%clk 0:00:25]}  Ke7 {[%clk 0:00:05]} 47. Ng8+ {[%clk 0:00:25]}  Kf8 {[%clk 0:00:05]} 48. Nxh6 {[%clk 0:00:24]}  f6 {[%clk 0:00:05]} 49. h4 {[%clk 0:00:24]}  Kg7 {[%clk 0:00:05]} 50. g5 {[%clk 0:00:24]}  Kh7 {[%clk 0:00:03]} 51. Kd5 {[%clk 0:00:24]}  fxg5 {[%clk 0:00:03]} 52. hxg5 {[%clk 0:00:24]}  Kg7 {[%clk 0:00:04]} 53. Kd6 {[%clk 0:00:24]}  Kh7 {[%clk 0:00:02]} 54. Kd7 {[%clk 0:00:24]}  Kg7 {[%clk 0:00:03]} 55. Kxd8 {[%clk 0:00:24]}  Kh7 {[%clk 0:00:04]} 56. Kc7 {[%clk 0:00:25]}  Kg7 {[%clk 0:00:05]} 57. Kb7 {[%clk 0:00:25]}  Kh7 {[%clk 0:00:06]} 58. Kxa7 {[%clk 0:00:26]}  Kg7 {[%clk 0:00:07]} 59. Kxb6 {[%clk 0:00:27]}  Kh7 {[%clk 0:00:08]} 60. Kc5 {[%clk 0:00:28]}  Kg7 {[%clk 0:00:08]} 61. Kd5 {[%clk 0:00:28]}  Kh7 {[%clk 0:00:09]} 62. Kxe5 {[%clk 0:00:29]}  Kg7 {[%clk 0:00:10]} 63. Kf4 {[%clk 0:00:30]}  Kh7 {[%clk 0:00:11]} 64. e5 {[%clk 0:00:31]}  Kg7 {[%clk 0:00:12]} 65. b6 {[%clk 0:00:32]}  Kh7 {[%clk 0:00:13]} 66. a7 {[%clk 0:00:32]}  Kg7 {[%clk 0:00:13]} 67. b7 {[%clk 0:00:33]}  Kh7 {[%clk 0:00:14]} 68. Ng4 {[%clk 0:00:32]}  Kg7 {[%clk 0:00:15]} 69. f6+ {[%clk 0:00:33]}  Kh7 {[%clk 0:00:16]} 70. Kf5 {[%clk 0:00:32]}  Kh8 {[%clk 0:00:16]} 71. g6 {[%clk 0:00:33]}  Kg8 {[%clk 0:00:16]} 72. e6 {[%clk 0:00:33]}  Kf8 {[%clk 0:00:17]} 73. Kg5 {[%clk 0:00:34]}  Ke8 {[%clk 0:00:18]} 74. b8=Q# {[%clk 0:00:31]} 1-0


[Site "https://www.chess.com"]

[Event "Titled Tuesday Blitz May 4 2021"]
[White "Pasti, Aron"]
[Black "Amarasinghe, A A C B"]
[WhiteFideId "785857"]
[BlackFideId "9901809"]
[WhiteElo "2082"]
[BlackElo "1778"]
[Result "0-1"]
[Round "10"]
[TimeControl "180+1"]
[Date "2021.05.04"]
[WhiteClock "0:02:04"]
[BlackClock "0:02:23"]

1. e4 {[%clk 0:03:00]}  c5 {[%clk 0:02:59]} 2. Nf3 {[%clk 0:03:00]}  Nc6 {[%clk 0:03:00]} 3. d4 {[%clk 0:03:01]}  cxd4 {[%clk 0:03:01]} 4. Nxd4 {[%clk 0:03:02]}  Nf6 {[%clk 0:03:01]} 5. Nc3 {[%clk 0:03:01]}  e5 {[%clk 0:03:02]} 6. Ndb5 {[%clk 0:02:58]}  d6 {[%clk 0:03:02]} 7. Be3 {[%clk 0:02:54]}  a6 {[%clk 0:02:58]} 8. Na3 {[%clk 0:02:51]}  b5 {[%clk 0:02:58]} 9. Nd5 {[%clk 0:02:48]}  Nxd5 {[%clk 0:02:58]} 10. Qxd5 {[%clk 0:02:47]}  Bb7 {[%clk 0:02:50]} 11. Be2 {[%clk 0:02:17]}  Qc7 {[%clk 0:02:48]} 12. O-O {[%clk 0:02:16]}  Nd4 {[%clk 0:02:34]} 13. Nxb5 {[%clk 0:02:08]}  Nxe2+ {[%clk 0:02:23]} 14. Kh1 {[%clk 0:02:04]} 0-1


[Site "https://www.chess.com"]

[Event "Titled Tuesday Blitz May 4 2021"]
[White "Pein, Jonathan"]
[Black "Kalashian, David"]
[WhiteFideId "417092"]
[BlackFideId "13302418"]
[WhiteElo "2167"]
[BlackElo "2490"]
[Result "1-0"]
[Round "10"]
[TimeControl "180+1"]
[Date "2021.05.04"]
[WhiteClock "0:00:10"]
[BlackClock "0:00:34"]

1. e4 {[%clk 0:03:00]}  c6 {[%clk 0:02:59]} 2. b3 {[%clk 0:03:00]}  g6 {[%clk 0:03:00]} 3. Bb2 {[%clk 0:03:01]}  Nf6 {[%clk 0:02:58]} 4. e5 {[%clk 0:03:01]}  Nd5 {[%clk 0:02:57]} 5. e6 {[%clk 0:03:01]}  Nf6 {[%clk 0:02:57]} 6. exf7+ {[%clk 0:03:01]}  Kxf7 {[%clk 0:02:57]} 7. Nf3 {[%clk 0:03:01]}  d6 {[%clk 0:02:54]} 8. h4 {[%clk 0:03:00]}  h6 {[%clk 0:02:52]} 9. Bd3 {[%clk 0:02:54]}  Bf5 {[%clk 0:02:48]} 10. Qe2 {[%clk 0:02:43]}  Nbd7 {[%clk 0:02:42]} 11. h5 {[%clk 0:02:37]}  Rg8 {[%clk 0:02:33]} 12. hxg6+ {[%clk 0:02:24]}  Bxg6 {[%clk 0:02:33]} 13. Bxg6+ {[%clk 0:02:00]}  Rxg6 {[%clk 0:02:34]} 14. Nh4 {[%clk 0:02:01]}  Rg5 {[%clk 0:02:27]} 15. f4 {[%clk 0:01:55]}  Rg4 {[%clk 0:02:27]} 16. Nc3 {[%clk 0:01:47]}  Bg7 {[%clk 0:02:12]} 17. Nf5 {[%clk 0:01:42]}  Rxf4 {[%clk 0:02:06]} 18. Nxh6+ {[%clk 0:01:42]}  Kf8 {[%clk 0:01:53]} 19. Qe6 {[%clk 0:01:26]}  Qe8 {[%clk 0:01:47]} 20. O-O-O {[%clk 0:01:05]}  Qg6 {[%clk 0:01:46]} 21. g3 {[%clk 0:00:53]}  Rf2 {[%clk 0:01:34]} 22. Qe3 {[%clk 0:00:50]}  Rg2 {[%clk 0:01:33]} 23. Rde1 {[%clk 0:00:32]}  Re8 {[%clk 0:01:22]} 24. Ne2 {[%clk 0:00:24]}  Ne5 {[%clk 0:01:10]} 25. Nf4 {[%clk 0:00:22]}  Qxh6 {[%clk 0:00:42]} 26. Ne6+ {[%clk 0:00:17]}  Kf7 {[%clk 0:00:39]} 27. Rxh6 {[%clk 0:00:17]}  Bxh6 {[%clk 0:00:40]} 28. Qxh6 {[%clk 0:00:18]}  Kxe6 {[%clk 0:00:38]} 29. Qh3+ {[%clk 0:00:18]}  Kf7 {[%clk 0:00:35]} 30. Qxg2 {[%clk 0:00:18]}  Neg4 {[%clk 0:00:36]} 31. Rh1 {[%clk 0:00:15]}  Rg8 {[%clk 0:00:35]} 32. Rh7+ {[%clk 0:00:15]}  Ke8 {[%clk 0:00:35]} 33. Qe2 {[%clk 0:00:14]}  Nd5 {[%clk 0:00:35]} 34. Qe6 {[%clk 0:00:11]}  Ngf6 {[%clk 0:00:34]} 35. Bxf6 {[%clk 0:00:10]} 1-0


[Site "https://www.chess.com"]